fUST/lending_fUST_20250111
["ID","MTS","AMOUNT","RATE_DAILY","PERIOD"]
[348484611,1736568642824,-2914.44,0.00022191,3]
[348484612,1736568642834,-500.0,0.00022191,3]
[348484613,1736568642843,-500.0,0.00022191,3]
[348484614,1736568642852,-505.80844291,0.00022191,3]
[348484615,1736568642862,-543.35,0.00022191,3]
[348484616,1736568642872,-314.30470029,0.00022191,3]
[348484617,1736568642881,-500.0,0.00022191,3]
[348484618,1736568642891,-500.0,0.00022191,3]
[348484619,1736568642900,-500.0,0.00022191,3]
[348484620,1736568642910,-500.0,0.00022191,3]
[348484621,1736568642920,-500.0,0.00022191,3]
[348484622,1736568642929,-326.781093,0.00022191,3]
[348484623,1736568642939,-22784.04,0.00022191,2]
[348484624,1736568642948,-560.37,0.00022191,3]
[348484625,1736568642958,-500.0,0.00022191,3]
[348484626,1736568642967,-638.60844782,0.00022191,3]
[348484627,1736568642978,-1475.63,0.00022191,3]
[348484628,1736568642987,-500.0,0.00022191,2]
[348484629,1736568642997,-2990.41,0.00022191,3]
[348484630,1736568643008,-500.0,0.00022191,3]
[348484632,1736568643018,-516.29739067,0.00022191,3]
[348484634,1736568643027,-500.0,0.00022191,3]
[348484636,1736568643037,-500.0,0.00022191,3]
[348484638,1736568643046,-500.0,0.00022191,3]
[348484639,1736568643056,-500.0,0.00022191,3]
[348484641,1736568643066,-500.0,0.00022191,3]
[348484643,1736568643075,-1165.15,0.00022191,3]
[348484645,1736568643084,-500.0,0.00022191,3]
[348484646,1736568643094,-500.0,0.00022191,3]
[348484647,1736568643103,-583.87,0.00022191,3]
[348484648,1736568643113,-500.0,0.00022191,3]
[348484649,1736568643122,-500.0,0.00022191,3]
[348484650,1736568643131,-944.67,0.00022191,3]
[348484651,1736568643141,-508.21025278,0.00022191,3]
[348484652,1736568643151,-540.94028948,0.00022191,3]
[348484653,1736568643161,-500.0,0.00022191,3]
[348484654,1736568643171,-694.32,0.00022191,3]
[348484655,1736568643182,-1142.04,0.00022191,3]
[348484656,1736568643191,-500.0,0.00022191,3]
[348484657,1736568643201,-500.0,0.00022191,3]
[348484658,1736568643211,-520.91,0.00022191,3]
[348484659,1736568643220,-660.53,0.00022191,3]
[348484660,1736568643231,-500.0,0.00022191,3]
[348484661,1736568643241,-500.0,0.00022191,3]
[348484662,1736568643250,-500.0,0.00022191,3]
[348484663,1736568643260,-12610.91,0.00022191,3]
[348484664,1736568643270,-500.0,0.00022191,3]
[348484665,1736568643279,-500.0,0.00022191,3]
[348484667,1736568643289,-500.0,0.00022191,3]
[348484669,1736568643299,-500.0,0.00022191,3]
[348484671,1736568643309,-598.57,0.00022191,3]
[348484673,1736568643319,-524.64008166,0.00022191,3]
[348484675,1736568643329,-500.0,0.00022191,3]
[348484677,1736568643338,-500.0,0.00022191,3]
[348484679,1736568643347,-500.0,0.00022191,3]
[348484681,1736568643358,-500.0,0.00022191,3]
[348484683,1736568643367,-1140.83,0.00022191,3]
[348484685,1736568643376,-634.89,0.00022191,3]
[348484687,1736568643386,-500.0,0.00022191,3]
[348484689,1736568643395,-832.3,0.000222,2]
[348484691,1736568643405,-958.38061196,0.00022245,2]
[348484693,1736568643415,-403.63815872,0.00022289,2]
[348484695,1736568643425,-958.38061196,0.00022314,2]
[348484697,1736568643434,-1000.0,0.00022327,2]
[348484699,1736568643443,-192.0,0.00022382,2]
[348484701,1736568643452,-958.38061196,0.00022383,2]
[348484703,1736568643462,-150.178724,0.000224,2]
[348484705,1736568643472,-3406.89138718,0.000224,2]
[348484707,1736568643482,-958.38061196,0.00022452,2]
[348484709,1736568643494,-7226.55,0.00022463,3]
[348484711,1736568643504,-248.96903936,0.00022464,2]
[348484713,1736568643513,-1252.0,0.00022464,4]
[348484715,1736568643523,-7226.55,0.00022464,3]
[348484717,1736568643533,-7226.55,0.00022464,3]
[348484718,1736568643543,-500.0,0.00022465,3]
[348484720,1736568643553,-618.03,0.00022465,3]
[348484722,1736568643564,-465.70910441,0.00022465,3]
[348484724,1736568643574,-500.0,0.00022465,3]
[348484726,1736568643583,-507.32547958,0.00022465,3]
[348484727,1736568643593,-151.0,0.00022465,7]
[348484728,1736568643603,-500.0,0.00022465,3]
[348484729,1736568643613,-151.0,0.00022465,7]
[348484730,1736568643623,-512.62784525,0.00022465,3]
[348484731,1736568643637,-500.0,0.00022465,3]
[348484732,1736568643647,-500.0,0.00022465,3]
[348484733,1736568643657,-151.0,0.00022465,7]
[348484734,1736568643667,-500.0,0.00022465,3]
[348484735,1736568643678,-500.0,0.00022465,3]
[348484736,1736568643688,-500.0,0.00022465,3]
[348484737,1736568643697,-500.0,0.00022465,3]
[348484738,1736568643708,-218.43,0.00022465,3]
[348484739,1736568643717,-500.0,0.00022465,3]
[348484740,1736568643728,-151.0,0.00022465,7]
[348484741,1736568643738,-243.60489456,0.00022465,3]
[348484742,1736568643748,-500.0,0.00022465,3]
[348484743,1736568643758,-500.0,0.00022465,3]
[348484744,1736568643768,-500.0,0.00022465,3]
[348484745,1736568643778,-500.0,0.00022465,3]
[348484746,1736568643787,-692.138284,0.00022465,7]
[348484747,1736568643798,-692.138284,0.00022465,7]
[348484748,1736568643808,-490.844375,0.00022465,7]
[348484749,1736568643817,-151.0,0.00022465,7]
[348484750,1736568643826,-490.844375,0.00022465,7]
[348484751,1736568643836,-1258.721156,0.00022465,7]
[348484752,1736568643845,-1258.721156,0.00022465,7]
[348484753,1736568643855,-258.417858,0.00022465,7]
[348484754,1736568643865,-258.417858,0.00022465,7]
[348484755,1736568643875,-2914.44,0.00022465,3]
[348484756,1736568643885,-500.0,0.00022465,3]
[348484757,1736568643895,-500.0,0.00022465,3]
[348484758,1736568643905,-543.35,0.00022465,3]
[348484759,1736568643914,-500.0,0.00022465,3]
[348484760,1736568643924,-22784.04,0.00022465,2]
[348484761,1736568643933,-560.37,0.00022465,3]
[348484762,1736568643943,-151.0,0.00022465,7]
[348484763,1736568643953,-1475.63,0.00022465,3]
[348484764,1736568643963,-500.0,0.00022465,2]
[348484765,1736568643972,-2990.41,0.00022465,3]
[348484766,1736568643983,-500.0,0.00022465,3]
[348484767,1736568643992,-250.577252,0.00022465,7]
[348484768,1736568644002,-250.577252,0.00022465,7]
[348484769,1736568644011,-500.0,0.00022465,3]
[348484770,1736568644022,-1015.680715,0.00022465,7]
[348484771,1736568644033,-194.09936453,0.00022465,3]
[348484772,1736568644044,-1015.680715,0.00022465,7]
[348484773,1736568644053,-1165.15,0.00022465,3]
[348484774,1736568644062,-500.0,0.00022465,3]
[348484775,1736568644071,-500.0,0.00022465,3]
[348484776,1736568644081,-583.87,0.00022465,3]
[348484777,1736568644091,-283.779465,0.00022465,7]
[348484778,1736568644100,-283.779465,0.00022465,7]
[348484779,1736568644109,-533.2932572,0.00022465,3]
[348484780,1736568644119,-944.67,0.00022465,3]
[348484781,1736568644128,-694.32,0.00022465,3]
[348484782,1736568644138,-1142.04,0.00022465,3]
[348484783,1736568644148,-500.0,0.00022465,3]
[348484784,1736568644157,-151.0,0.00022465,7]
[348484785,1736568644166,-536.787866,0.00022465,7]
[348484786,1736568644176,-500.0,0.00022465,3]
[348484787,1736568644186,-520.91,0.00022465,3]
[348484788,1736568644195,-660.53,0.00022465,3]
[348484789,1736568644205,-536.787866,0.00022465,7]
[348484790,1736568644214,-500.0,0.00022465,3]
[348484791,1736568644223,-500.0,0.00022465,3]
[348484792,1736568644233,-12610.91,0.00022465,3]
[348484793,1736568644244,-500.0,0.00022465,3]
[348484794,1736568644253,-500.0,0.00022465,3]
[348484795,1736568644263,-500.0,0.00022465,3]
[348484796,1736568644272,-170.025882,0.00022465,7]
[348484797,1736568644282,-1140.83,0.00022465,3]
[348484798,1736568644291,-170.025882,0.00022465,7]
[348484799,1736568644301,-634.89,0.00022465,3]
[348484800,1736568644310,-500.0,0.00022473,2]
[348484801,1736568644319,-418.92809778,0.00022473,2]
[348484802,1736568644329,-500.0,0.00022473,2]
[348484803,1736568644339,-500.0,0.00022473,2]
[348484804,1736568644349,-151.15981336,0.00022473,2]
[348484805,1736568644359,-428.85915438,0.00022473,2]
[348484806,1736568644368,-279.6321913,0.00022473,2]
[348484807,1736568644377,-220.42813345,0.00022473,2]
[348484808,1736568644386,-500.74364599,0.00022473,2]
[348484809,1736568644395,-500.0,0.00022473,2]
[348484810,1736568644404,-7226.55,0.00022498,3]
[348484811,1736568644414,-7226.55,0.00022498,3]
[348484812,1736568644424,-7226.55,0.00022498,3]
[348484813,1736568644433,-7226.55,0.00022498,3]
[348484814,1736568644443,-7226.55,0.00022498,3]
[348484815,1736568644452,-7226.55,0.00022498,3]
[348484816,1736568644462,-7226.55,0.00022498,3]
[348484817,1736568644472,-7226.55,0.00022498,3]
[348484818,1736568644481,-7226.57819783,0.00022498,3]
[348484819,1736568644491,-1193.947734,0.00022499,7]
[348484820,1736568644502,-1193.947734,0.00022499,7]
[348484821,1736568644511,-151.0,0.00022499,7]
[348484822,1736568644520,-267.534448,0.00022499,7]
[348484823,1736568644531,-151.0,0.00022499,7]
[348484824,1736568644540,-693718.47954743,0.000225,5]
[348484825,1736568644859,-500.0,0.00022473,2]
[348484826,1736568644868,-11508.4936187,0.000225,5]
[348484850,1736568646519,-331.266836,0.00022465,7]
[348484906,1736569832959,-500.0,0.0001777,2]
[348484907,1736569832970,-500.0,0.00018705,2]
[348484908,1736569832980,-500.0,0.00019689,2]
[348484909,1736569832990,-150.0,0.000204,2]
[348484910,1736569833000,-172.3778615,0.00020515,2]
[348484911,1736569833011,-500.0,0.00020674,2]
[348484912,1736569833023,-490.833,0.0002137,2]
[348484913,1736569833033,-353.1995497,0.00021644,2]
[348484914,1736569833044,-353.1995497,0.00021644,2]
[348484915,1736569833053,-353.1995497,0.00021644,2]
[348484916,1736569833063,-353.1995497,0.00021644,2]
[348484917,1736569833073,-353.1995497,0.00021644,2]
[348484918,1736569833083,-351.7569013,0.00021644,2]
[348484919,1736569833093,-360.6640772,0.00021708,2]
[348484920,1736569833102,-163.98376503,0.00021817,2]
[348484921,1736569833112,-181.90398587,0.00021817,2]
[348484922,1736569833122,-153.87,0.00021916,2]
[348484923,1736569833131,-585.50876194,0.00021916,2]
[348484924,1736569833141,-500.0,0.00021916,2]
[348484925,1736569833151,-500.0,0.00021916,2]
[348484926,1736569833164,-500.0,0.00021916,2]
[348484927,1736569833174,-500.0,0.00021916,2]
[348484928,1736569833184,-180.97250265,0.00021916,2]
[348484929,1736569833194,-500.0,0.00021916,2]
[348484930,1736569833203,-500.0,0.00021916,2]
[348484931,1736569833213,-500.0,0.00021916,2]
[348484932,1736569833223,-500.0,0.00021916,2]
[348484933,1736569833233,-500.0,0.00021916,2]
[348484934,1736569833244,-500.0,0.00021916,2]
[348484935,1736569833254,-359.96541722,0.00021916,2]
[348484936,1736569833264,-500.0,0.00021916,2]
[348484937,1736569833274,-430.98103302,0.00021916,2]
[348484938,1736569833284,-151.296,0.00021916,2]
[348484939,1736569833293,-500.0,0.00021916,7]
[348484940,1736569833303,-511.78003056,0.00021916,2]
[348484941,1736569833313,-501.06213942,0.00021917,3]
[348484942,1736569833323,-91.00027579,0.00021917,3]
[348484943,1736569833336,-413.42950494,0.00021917,3]
[348484944,1736569833345,-500.0,0.00021917,3]
[348484945,1736569833355,-503.96439247,0.00021917,3]
[348484946,1736569833365,-10.74525026,0.00021917,3]
[348484947,1736569833376,-493.72143152,0.00021917,3]
[348484948,1736569833386,-500.0,0.00021917,3]
[348484949,1736569833396,-502.24077396,0.00021917,3]
[348484950,1736569833406,-366.31255931,0.00021917,3]
[348484951,1736569833418,-134.34538544,0.00021917,3]
[348484952,1736569833428,-500.0,0.00021917,3]
[348484953,1736569833438,-502.65523895,0.00021917,3]
[348484954,1736569833447,-502.07279749,0.00021917,3]
[348484955,1736569833457,-500.0,0.00021917,3]
[348484956,1736569833467,-504.5533997,0.00021917,3]
[348484957,1736569833476,-502.8792395,0.00021917,3]
[348484958,1736569833486,-500.44578306,0.00021917,3]
[348484959,1736569833496,-503.28894602,0.00021917,3]
[348484960,1736569833506,-521.16689846,0.00021917,3]
[348484961,1736569833516,-503.65791915,0.00021917,3]
[348484962,1736569833526,-500.86790749,0.00021917,3]
[348484963,1736569833535,-503.28497006,0.00021917,3]
[348484964,1736569833545,-500.0,0.00021917,3]
[348484965,1736569833555,-500.0,0.00021917,3]
[348484966,1736569833566,-505.19258467,0.00021917,3]
[348484967,1736569833576,-502.07724486,0.00021917,3]
[348484968,1736569833586,-284.80080637,0.00021917,3]
[348484969,1736569833596,-504.61917603,0.00021917,3]
[348484970,1736569833606,-500.0,0.00021917,3]
[348484971,1736569833616,-502.23965822,0.00021917,3]
[348484972,1736569833626,-504.22701338,0.00021917,3]
[348484973,1736569833636,-505.0373264,0.00021917,3]
[348484974,1736569833646,-506.3413885,0.00021917,3]
[348484975,1736569833656,-312.03751943,0.00021917,3]
[348484976,1736569833666,-503.25407483,0.00021917,3]
[348484977,1736569833676,-504.59208414,0.00021917,3]
[348484978,1736569833686,-500.0,0.00021917,3]
[348484979,1736569833696,-500.0,0.00021917,3]
[348484980,1736569833706,-504.74864502,0.00021917,3]
[348484981,1736569833715,-347.37030399,0.00021917,3]
[348484982,1736569833725,-501.86434631,0.00021917,3]
[348484983,1736569833735,-503.08592879,0.00021917,3]
[348484984,1736569833745,-493.87208075,0.00021917,3]
[348484985,1736569833755,-201.49739477,0.00021917,3]
[348484986,1736569833765,-504.06726278,0.00021917,3]
[348484987,1736569833774,-503.45270034,0.00021917,3]
[348484988,1736569833784,-112.411101,0.00021917,3]
[348484989,1736569833797,-392.9593527,0.00021917,3]
[348484990,1736569833807,-75.0806473,0.00021917,3]
[348484991,1736569833820,-517.85625016,0.00021917,3]
[348484992,1736569833830,-500.0,0.00021917,3]
[348484993,1736569833841,-502.23059056,0.00021917,3]
[348484994,1736569833851,-504.12786191,0.00021917,3]
[348484995,1736569833860,-200.0,0.00021917,3]
[348484996,1736569833870,-505.21160695,0.00021917,3]
[348484997,1736569833880,-500.0,0.00021917,3]
[348484998,1736569833891,-500.0,0.00021917,3]
[348484999,1736569833900,-500.0,0.00021917,3]
[348485000,1736569833911,-507.43132279,0.00021917,3]
[348485001,1736569833921,-500.0,0.00021917,3]
[348485002,1736569833933,-502.56706644,0.00021917,3]
[348485003,1736569833943,-500.0,0.00021917,3]
[348485004,1736569833953,-512.54024283,0.00021917,3]
[348485005,1736569833964,-502.72136257,0.00021917,3]
[348485006,1736569833974,-500.0,0.00021917,3]
[348485007,1736569833984,-500.0,0.00021917,3]
[348485008,1736569833995,-500.0,0.00021917,3]
[348485009,1736569834004,-501.55684235,0.00021917,3]
[348485010,1736569834014,-500.0,0.00021917,3]
[348485011,1736569834023,-500.0,0.00021917,3]
[348485012,1736569834033,-500.0,0.00021917,3]
[348485013,1736569834043,-500.0,0.00021917,3]
[348485014,1736569834052,-501.03406267,0.00021917,3]
[348485015,1736569834062,-500.0,0.00021917,3]
[348485016,1736569834072,-502.68340808,0.00021917,3]
[348485017,1736569834082,-500.0,0.00021917,3]
[348485018,1736569834092,-502.70123151,0.00021917,3]
[348485019,1736569834103,-500.0,0.00021917,3]
[348485020,1736569834113,-500.0,0.00021917,3]
[348485021,1736569834123,-503.65494968,0.00021917,3]
[348485022,1736569834133,-503.2934099,0.00021917,3]
[348485023,1736569834143,-631.53609225,0.00021917,3]
[348485024,1736569834153,-500.0,0.00021917,3]
[348485025,1736569834164,-503.11382472,0.00021917,3]
[348485026,1736569834175,-500.0,0.00021917,3]
[348485027,1736569834185,-506.72863855,0.00021917,3]
[348485028,1736569834195,-500.0,0.00021917,3]
[348485029,1736569834204,-501.95649319,0.00021917,3]
[348485030,1736569834214,-500.0,0.00021917,3]
[348485031,1736569834224,-501.00552606,0.00021917,3]
[348485032,1736569834234,-503.14929466,0.00021917,3]
[348485033,1736569834244,-242.72317068,0.00021917,3]
[348485034,1736569834254,-500.0,0.00021917,3]
[348485035,1736569834264,-503.62106808,0.00021917,3]
[348485036,1736569834273,-500.0,0.00021917,3]
[348485037,1736569834284,-500.0,0.00021917,3]
[348485038,1736569834294,-573.49967594,0.00021917,3]
[348485039,1736569834304,-500.0,0.00021917,3]
[348485040,1736569834314,-505.41330329,0.00021917,3]
[348485041,1736569834324,-500.0,0.00021917,3]
[348485042,1736569834334,-500.0,0.00021917,3]
[348485043,1736569834343,-500.0,0.00021917,3]
[348485044,1736569834353,-500.0,0.00021917,3]
[348485045,1736569834363,-502.16584096,0.00021917,3]
[348485046,1736569834374,-500.0,0.00021917,3]
[348485047,1736569834384,-500.0,0.00021917,3]
[348485048,1736569834394,-500.0,0.00021917,3]
[348485049,1736569834404,-500.0,0.00021917,3]
[348485050,1736569834414,-500.0,0.00021917,3]
[348485051,1736569834424,-505.99732376,0.00021917,3]
[348485052,1736569834434,-500.0,0.00021917,3]
[348485053,1736569834444,-502.69519209,0.00021917,3]
[348485054,1736569834454,-576.36,0.00021917,3]
[348485055,1736569834464,-506.12220164,0.00021917,3]
[348485056,1736569834475,-505.10666966,0.00021917,3]
[348485057,1736569834485,-500.0,0.00021917,3]
[348485058,1736569834495,-504.9123215,0.00021917,3]
[348485059,1736569834504,-513.57746368,0.00021917,3]
[348485060,1736569834514,-215.59379888,0.00021917,3]
[348485081,1736569838546,-284.40620112,0.00021917,3]
[348485082,1736569838556,-356.08443418,0.00021917,3]
[348485084,1736569838602,-143.91556582,0.00021917,3]
[348485085,1736569838612,-500.0,0.00021917,3]
[348485086,1736569838621,-540.78,0.00021917,3]
[348485087,1736569838631,-255.15220637,0.00021917,3]
[348485088,1736569838640,-233.19854336,0.00021917,3]
[348485089,1736569838651,-266.80145664,0.00021917,3]
[348485090,1736569838661,-57.42537501,0.00021917,3]
[348485091,1736569838673,-442.57462499,0.00021917,3]
[348485092,1736569838683,-273.97537401,0.00021917,3]
[348485093,1736569838699,-229.41643148,0.00021917,3]
[348485094,1736569838708,-503.78314351,0.00021917,3]
[348485095,1736569838718,-503.97984543,0.00021917,3]
[348485096,1736569838728,-500.0,0.00021917,3]
[348485097,1736569838737,-495.05524694,0.00021917,3]
[348485098,1736569838746,-504.31219718,0.00021917,3]
[348485099,1736569838755,-500.0,0.00021917,3]
[348485100,1736569838765,-500.0,0.00021917,3]
[348485101,1736569838774,-503.98403393,0.00021917,3]
[348485102,1736569838783,-500.0,0.00021917,3]
[348485103,1736569838794,-579.86446606,0.00021917,3]
[348485104,1736569838804,-342.45055225,0.00021917,3]
[348485105,1736569838814,-500.0,0.00021917,3]
[348485106,1736569838824,-176.28296532,0.00021917,3]
[348485107,1736569838833,-503.5645356,0.00021917,3]
[348485108,1736569838843,-500.0,0.00021917,3]
[348485109,1736569838852,-502.87940717,0.00021917,3]
[348485110,1736569838861,-197.67860897,0.00021917,3]
[348485139,1736569840700,-303.72731523,0.00021917,3]
[348485141,1736569840710,-196.27268477,0.00021917,3]
[348485147,1736569840753,-303.72731523,0.00021917,3]
[348485149,1736569840763,-503.48912621,0.00021917,3]
[348485151,1736569840772,-500.0,0.00021917,3]
[348485153,1736569840782,-509.17531088,0.00021917,3]
[348485155,1736569840792,-500.0,0.00021917,3]
[348485157,1736569840802,-500.0,0.00021917,3]
[348485159,1736569840812,-505.22730351,0.00021917,3]
[348485176,1736569840966,-500.0,0.00021917,3]
[348485179,1736569840976,-500.0,0.00021917,3]
[348485181,1736569840986,-253.78307694,0.00021917,3]
[348485183,1736569840995,-504.4518101,0.00021917,3]
[348485185,1736569841005,-500.0,0.00021917,3]
[348485187,1736569841014,-502.91770502,0.00021917,3]
[348485189,1736569841025,-500.0,0.00021917,3]
[348485191,1736569841035,-503.62421723,0.00021917,3]
[348485193,1736569841045,-500.0,0.00021917,3]
[348485195,1736569841055,-505.7079161,0.00021917,3]
[348485197,1736569841064,-508.06262848,0.00021917,3]
[348485199,1736569841074,-500.0,0.00021917,3]
[348485201,1736569841083,-500.0,0.00021917,3]
[348485203,1736569841093,-500.0,0.00021917,3]
[348485205,1736569841103,-500.0,0.00021917,3]
[348485207,1736569841112,-500.0,0.00021917,3]
[348485209,1736569841122,-502.96095932,0.00021917,3]
[348485211,1736569841132,-502.96494442,0.00021917,3]
[348485213,1736569841142,-500.0,0.00021917,3]
[348485215,1736569841152,-504.10513418,0.00021917,3]
[348485217,1736569841161,-507.99972818,0.00021917,3]
[348485219,1736569841171,-500.0,0.00021917,3]
[348485221,1736569841183,-620.95348936,0.00021917,3]
[348485223,1736569841193,-500.0,0.00021917,3]
[348485225,1736569841203,-500.0,0.00021917,3]
[348485227,1736569841213,-422.83940568,0.00021917,3]
[348485229,1736569841222,-500.0,0.00021917,3]
[348485231,1736569841232,-1250.0,0.00021917,3]
[348485233,1736569841242,-500.0,0.00021917,3]
[348485236,1736569841253,-500.0,0.00021917,3]
[348485238,1736569841263,-292.97700033,0.00021917,3]
[348485240,1736569841272,-504.56529049,0.00021917,3]
[348485242,1736569841282,-500.0,0.00021917,3]
[348485244,1736569841291,-500.0,0.00021917,3]
[348485246,1736569841301,-500.0,0.00021917,3]
[348485248,1736569841311,-500.0,0.00021917,3]
[348485250,1736569841320,-503.85192987,0.00021917,3]
[348485252,1736569841330,-500.0,0.00021917,3]
[348485254,1736569841339,-500.0,0.00021917,3]
[348485256,1736569841349,-500.0,0.00021917,3]
[348485258,1736569841358,-502.27752898,0.00021917,3]
[348485260,1736569841367,-257.3282641,0.00021917,3]
[348485262,1736569841377,-584.01665818,0.00021917,3]
[348485264,1736569841387,-555.53,0.00021917,3]
[348485266,1736569841396,-500.0,0.00021917,3]
[348485268,1736569841406,-500.0,0.00021917,3]
[348485270,1736569841416,-345.27430225,0.00021917,3]
[348485272,1736569841425,-502.80953497,0.00021917,3]
[348485274,1736569841435,-500.0,0.00021917,3]
[348485276,1736569841444,-500.0,0.00021917,3]
[348485278,1736569841454,-500.0,0.00021917,3]
[348485280,1736569841465,-500.0,0.00021917,3]
[348485282,1736569841474,-500.0,0.00021917,3]
[348485284,1736569841483,-500.0,0.00021917,3]
[348485286,1736569841492,-648.96319166,0.00021917,3]
[348485288,1736569841502,-504.94649811,0.00021917,3]
[348485290,1736569841512,-500.0,0.00021917,3]
[348485292,1736569841521,-576.07672525,0.00021917,3]
[348485294,1736569841531,-502.78052146,0.00021917,3]
[348485296,1736569841540,-498.86658393,0.00021917,3]
[348485298,1736569841550,-503.77874944,0.00021917,3]
[348485300,1736569841560,-500.0,0.00021917,3]
[348485302,1736569841570,-500.0,0.00021917,3]
[348485304,1736569841579,-504.5474997,0.00021917,3]
[348485306,1736569841589,-500.0,0.00021917,3]
[348485308,1736569841598,-500.0,0.00021917,3]
[348485310,1736569841608,-500.0,0.00021917,3]
[348485312,1736569841618,-500.0,0.00021917,3]
[348485314,1736569841627,-2580.88,0.00021917,3]
[348485316,1736569841637,-506.49273994,0.00021917,3]
[348485318,1736569841647,-500.0,0.00021917,3]
[348485320,1736569841656,-21578.29,0.00021917,2]
[348485322,1736569841666,-500.0,0.00021917,3]
[348485324,1736569841676,-504.71909738,0.00021917,3]
[348485326,1736569841685,-500.0,0.00021917,3]
[348485328,1736569841695,-1327.22,0.00021917,3]
[348485330,1736569841704,-2829.0,0.00021917,3]
[348485332,1736569841714,-500.0,0.00021917,3]
[348485334,1736569841723,-500.0,0.00021917,3]
[348485336,1736569841733,-500.0,0.00021917,3]
[348485338,1736569841742,-500.0,0.00021917,3]
[348485340,1736569841751,-500.0,0.00021917,3]
[348485342,1736569841761,-500.0,0.00021917,3]
[348485344,1736569841770,-500.0,0.00021917,2]
[348485346,1736569841779,-2616.6,0.00021917,3]
[348485348,1736569841789,-581.12835486,0.00021917,3]
[348485350,1736569841799,-500.0,0.00021917,3]
[348485352,1736569841808,-500.0,0.00021917,3]
[348485354,1736569841818,-504.44579197,0.00021917,3]
[348485356,1736569841828,-500.0,0.00021917,3]
[348485358,1736569841838,-500.0,0.00021917,3]
[348485359,1736569841847,-531.72,0.00021917,3]
[348485362,1736569841857,-500.0,0.00021917,3]
[348485363,1736569841867,-500.0,0.00021917,3]
[348485366,1736569841877,-504.0691468,0.00021917,3]
[348485368,1736569841886,-500.0,0.00021917,3]
[348485370,1736569841895,-601.26129794,0.00021917,3]
[348485372,1736569841904,-586.05,0.00021917,3]
[348485374,1736569841913,-500.0,0.00021917,3]
[348485376,1736569841923,-502.25128346,0.00021917,3]
[348485378,1736569841934,-847.42,0.00021917,3]
[348485380,1736569841944,-500.0,0.00021917,3]
[348485382,1736569841953,-500.0,0.00021917,3]
[348485384,1736569841963,-1040.34,0.00021917,3]
[348485386,1736569841972,-628.37,0.00021917,3]
[348485388,1736569841982,-500.0,0.00021917,3]
[348485390,1736569841991,-500.0,0.00021917,3]
[348485392,1736569842000,-500.0,0.00021917,3]
[348485394,1736569842009,-500.0,0.00021917,3]
[348485396,1736569842019,-503.54195776,0.00021917,3]
[348485398,1736569842028,-1031.83,0.00021917,3]
[348485400,1736569842037,-500.0,0.00021917,3]
[348485402,1736569842047,-196.4634953,0.00021917,3]
[348485404,1736569842057,-500.0,0.00021917,3]
[348485406,1736569842066,-500.0,0.00021917,3]
[348485408,1736569842075,-500.0,0.00021917,3]
[348485410,1736569842084,-500.0,0.00021917,3]
[348485412,1736569842093,-577.96,0.00021917,3]
[348485414,1736569842103,-500.0,0.00021917,3]
[348485416,1736569842113,-500.0,0.00021917,3]
[348485418,1736569842122,-998.22,0.00021917,3]
[348485420,1736569842131,-504.72871837,0.00021917,3]
[348485422,1736569842141,-5051.08052139,0.00021917,3]
[348485563,1736569843715,-5993.76947861,0.00021917,3]
[348485565,1736569843725,-500.0,0.00021917,3]
[348485567,1736569843734,-500.0,0.00021917,3]
[348485569,1736569843744,-505.28784503,0.00021917,3]